bitfinex/quotes_ETHUSD_20250406
["timestamp","ask_amount","ask_price","bid_price","bid_amount"]
[1743972224382,3.4659444,1594.9,1593.8,6.2743]
[1743972224594,3.4659444,1594.9,1593.6,6.27488]
[1743972224744,0.4659444,1594.9,1593.9,3.0]
[1743972224946,3.0,1594.9,1593.9,0.06272693]
[1743972225147,3.0,1594.9,1593.7,6.902058]
[1743972225448,0.55,1594.8,1593.7,6.902058]
[1743972225781,0.55,1594.8,1593.8,0.06273046]
[1743972226090,0.48064059,1594.9,1593.7,6.901938]
[1743972226241,0.48064059,1594.9,1593.8,0.6901938]
[1743972226447,0.55,1594.8,1593.8,0.6901938]
[1743972227093,0.55,1594.8,1593.9,0.0627312]
[1743972227600,0.55,1594.8,1593.3,5.90398054]
[1743972227803,3.55,1594.3,1593.0,6.905195]
[1743972227980,3.55,1594.0,1593.1,0.6905195]
[1743972228180,3.55,1594.0,1592.9,6.27785]
[1743972228491,3.55,1594.0,1592.8,6.27819]
[1743972228660,3.55,1594.0,1592.9,0.06276938]
[1743972228996,4.01151671,1594.0,1592.9,6.27771]
[1743972229202,4.01151671,1594.0,1593.0,0.627771]
[1743972229360,4.01151671,1594.0,1592.8,6.27801]
[1743972229884,4.01151671,1594.0,1592.9,6.34040577]
[1743972230082,18.93951671,1594.0,1592.6,6.27875]
[1743972230285,22.74871174,1594.0,1592.7,0.0627695]
[1743972230482,22.74871174,1594.0,1592.5,6.27938]
[1743972230483,3.55,1593.7,1592.5,6.27925]
[1743972230785,3.55,1593.7,1592.6,0.627925]
[1743972230987,3.55,1593.7,1592.4,0.47847384]
[1743972231300,3.55,1593.4,1592.4,0.47847384]
[1743972231511,3.55,1593.4,1592.3,0.0627855]
[1743972231721,3.80919503,1593.7,1592.6,6.2787]
[1743972231861,3.55,1593.6,1592.5,6.27904]
[1743972232065,3.55,1593.6,1592.6,6.96971269]
[1743972232266,3.55,1593.6,1592.6,0.627904]
[1743972232578,3.55,1593.6,1592.6,0.06277866]
[1743972232776,3.0,1593.8,1592.7,6.2785]
[1743972232991,3.0,1593.8,1592.5,6.27904]
[1743972233180,0.55,1593.7,1592.4,6.27969]
[1743972233381,1.01118243,1593.7,1592.5,0.627969]
[1743972233770,1.01118243,1593.7,1592.5,0.69074646]
[1743972234272,0.46118243,1593.7,1592.5,0.627969]
[1743972234582,0.55,1593.6,1592.6,0.06277035]
[1743972234910,3.55,1593.6,1592.5,0.06278407]
[1743972235208,9.45398054,1593.6,1592.3,0.06278407]
[1743972236369,9.45398054,1593.6,1592.1,3.0]
[1743972236716,3.55,1593.4,1591.6,0.48174464]
[1743972236875,5.90398054,1592.7,1591.1,0.46490582]
[1743972237070,3.80919503,1592.7,1591.6,6.28269]
[1743972237366,14.765,1592.8,1591.7,0.06281409]
[1743972237571,0.55,1592.6,1591.4,6.2835]
[1743972237811,0.55,1592.6,1591.5,0.69116659]
[1743972237971,0.55,1592.6,1591.5,0.06281659]
[1743972238315,0.46658453,1592.6,1591.5,6.28334]
[1743972238517,3.0,1592.7,1591.6,0.06282049]
[1743972238667,0.55,1592.6,1591.6,0.06282049]
[1743972239516,0.55,1592.6,1591.6,0.63461805]
[1743972239822,3.0,1592.7,1591.7,6.28257]
[1743972240022,0.55,1592.6,1591.8,0.06280939]
[1743972240177,3.0,1592.7,1591.6,0.06281287]
[1743972240495,5.90398054,1593.0,1591.7,6.28259]
[1743972240694,58.53744428,1593.3,1592.0,6.28121]
[1743972240896,58.53744428,1593.3,1592.1,0.628121]
[1743972241080,58.53744428,1593.3,1591.9,9.28164]
[1743972241081,3.0,1593.1,1591.9,9.28164]
[1743972241283,58.53744428,1593.3,1592.0,6.28138]
[1743972241501,3.0,1593.1,1591.9,9.28163]
[1743972241793,3.0,1593.1,1591.9,6.28175]
[1743972242099,0.55,1593.1,1591.9,12.56329]
[1743972242300,4.27191414,1593.2,1592.0,1.31912575]
[1743972242481,4.27191414,1593.2,1591.9,3.0]
[1743972242684,3.0,1593.1,1591.7,9.28227]
[1743972242916,0.55,1593.0,1591.8,6.28219]
[1743972243105,3.0,1592.9,1591.9,0.0628005]
[1743972243582,3.0,1592.9,1592.0,6.28138]
[1743972243784,3.0,1593.1,1592.1,6.908938]
[1743972244301,3.0,1593.1,1592.1,0.628138]
[1743972244512,3.0,1593.1,1592.1,6.909118]
[1743972244696,3.0,1593.1,1592.1,0.628138]
[1743972245025,4.27191414,1593.2,1592.2,0.0627971]
[1743972245329,4.27191414,1593.2,1592.1,3.0]
[1743972245488,3.55,1593.1,1592.1,6.28083]
[1743972245683,0.46271911,1593.2,1592.0,3.0]
[1743972245918,3.46271911,1593.2,1592.0,6.28127]
[1743972246094,3.0,1592.9,1592.1,0.628127]
[1743972246303,0.55,1592.8,1591.6,6.28275]
[1743972246626,0.55,1592.8,1591.3,6.28417]
[1743972246627,3.55,1592.6,1591.3,6.28417]
[1743972246791,0.55,1592.5,1591.3,6.28402]
[1743972246982,0.55,1592.5,1591.1,7.82107]
[1743972246983,0.55,1592.5,1591.5,6.28317]
[1743972247183,0.55,1592.5,1591.3,6.28411]
[1743972247395,0.55,1592.5,1591.1,1.5363]
[1743972247728,1.01953652,1592.5,1591.4,6.28377]
[1743972248021,1.01953652,1592.5,1591.5,6.97455732]
[1743972248184,0.46953652,1592.5,1591.5,0.69119732]
[1743972248385,0.55,1592.5,1591.5,6.28323]
[1743972248584,0.55,1592.5,1591.6,0.06282106]
[1743972248785,3.0,1592.6,1591.6,6.34573106]
[1743972249028,3.46887666,1592.6,1591.6,0.06282106]
[1743972249334,0.55,1592.5,1591.5,6.34583474]
[1743972249629,3.46887666,1592.6,1591.6,0.63458347]
[1743972249795,0.55,1592.5,1591.2,6.28429]
[1743972250127,0.55,1592.2,1591.1,6.28481]
[1743972250329,0.55,1592.2,1591.1,6.28472]
[1743972250530,0.55,1592.2,1590.9,6.28569]
[1743972250732,0.55,1591.9,1591.0,0.628569]
[1743972251026,14.183,1591.9,1591.1,0.06284342]
[1743972251195,14.183,1591.9,1591.1,6.28479]
[1743972251639,14.183,1591.9,1591.4,6.28349]
[1743972251844,14.183,1591.9,1591.1,0.46010997]
[1743972251991,3.47321288,1592.2,1591.3,6.28402]
[1743972252336,3.47321288,1592.2,1591.4,0.628402]
[1743972252631,3.47321288,1592.2,1591.0,3.0]
[1743972252932,0.55,1592.1,1591.0,6.28521]
[1743972253139,3.47321288,1592.2,1591.3,6.28399]
[1743972253337,3.47321288,1592.2,1590.9,6.28569]
[1743972253338,3.0,1592.0,1590.9,6.28569]
[1743972253544,3.0,1592.0,1590.7,0.4710919]
[1743972253545,0.55,1591.9,1591.0,0.628569]
[1743972253838,0.55,1591.9,1590.8,0.06284369]
[1743972254004,0.55,1591.6,1590.5,6.28717]
[1743972254227,8.90398054,1591.5,1590.6,0.628717]
[1743972254430,0.55,1591.4,1590.3,6.28789]
[1743972254727,0.55,1591.4,1590.3,12.57584]
[1743972254941,8.90398054,1591.5,1590.4,0.06286343]
[1743972255148,8.90398054,1591.5,1589.9,6.28938]
[1743972255149,1.01611527,1591.4,1589.9,6.28938]
[1743972255462,3.55,1590.5,1589.5,6.29103]
[1743972255617,3.0,1590.3,1589.4,6.29143]
[1743972255959,3.0,1590.3,1589.6,6.2908]
[1743972256129,13.993,1590.4,1589.7,6.91938]
[1743972256324,13.993,1590.4,1589.7,6.91955]
[1743972256663,13.943,1590.9,1590.0,6.28904]
[1743972257163,13.943,1590.9,1590.0,0.06287873]
[1743972257314,13.943,1590.9,1589.9,6.28966]
[1743972257519,13.943,1590.9,1590.0,0.628966]
[1743972257820,13.943,1590.9,1590.0,6.28915]
[1743972258019,13.943,1590.9,1590.1,6.28863]
[1743972258258,13.943,1590.9,1590.0,0.55]
[1743972258565,43.93214625,1591.3,1590.3,6.28795]
[1743972258566,51.606,1591.3,1590.3,6.28795]
[1743972258731,51.606,1591.3,1590.3,6.28794]
[1743972258929,51.606,1591.3,1590.4,0.628794]
[1743972259163,51.606,1591.3,1589.7,0.62908]
[1743972259164,5.90398054,1591.0,1589.7,0.62908]
[1743972259320,3.55,1590.3,1589.1,6.29267]
[1743972259681,13.861,1590.2,1589.2,0.06290258]
[1743972260017,5.90398054,1589.7,1587.8,1.5422]
[1743972260264,45.09619503,1590.1,1587.8,1.5422]
[1743972260265,5.90398054,1590.0,1588.6,0.46573804]
[1743972260465,3.0,1589.9,1588.8,12.58786]
[1743972260625,37.737,1590.1,1589.0,6.29326]
[1743972260959,37.737,1590.1,1589.3,6.29207]
[1743972261258,37.737,1590.1,1589.4,0.06290554]
[1743972261417,13.861,1590.2,1589.4,0.06290554]
[1743972261622,13.861,1590.2,1589.5,6.29125]
[1743972261823,13.861,1590.2,1589.6,0.629125]
[1743972262018,13.861,1590.2,1589.6,6.29056]
[1743972262223,13.861,1590.2,1589.8,6.28979]
[1743972262418,13.957,1590.7,1589.9,0.06288724]
[1743972262829,14.42282589,1590.7,1589.9,0.06288724]
[1743972263053,3.0,1590.6,1589.6,6.29075]
[1743972263260,3.0,1590.6,1589.7,0.629075]
[1743972263465,13.957,1590.7,1589.8,0.06288733]
[1743972263623,37.737,1590.8,1589.9,6.28952]
[1743972263818,5.90398054,1590.6,1589.1,6.29287]
[1743972264018,37.737,1590.8,1589.6,6.29074]
[1743972264283,3.80919503,1591.1,1589.7,0.61289357]
[1743972264459,3.80919503,1591.1,1590.1,6.28872]
[1743972264649,14.20350487,1591.2,1590.1,0.55]
[1743972264830,14.20350487,1591.2,1590.3,6.28796]
[1743972265027,41.43321221,1591.5,1590.5,6.28733]
[1743972265266,41.43321221,1591.5,1590.5,6.287]
[1743972265575,41.43321221,1591.5,1590.4,0.628796]
[1743972265576,41.43321221,1591.5,1590.4,6.916466]
[1743972265777,41.43321221,1591.5,1590.4,3.628796]
[1743972266151,41.43321221,1591.5,1590.5,0.06285919]
[1743972266481,41.43321221,1591.5,1590.5,0.76076707]
[1743972266684,41.43321221,1591.5,1590.4,12.57519]
[1743972266976,37.745,1591.5,1590.7,6.28623]
[1743972267174,37.745,1591.5,1590.6,6.28693]
[1743972267382,37.745,1591.5,1590.3,3.55]
[1743972267667,37.745,1591.5,1590.5,9.28702]
[1743972267870,0.55,1591.3,1590.1,6.28856]
[1743972268038,3.0,1591.3,1590.2,0.06287146]
[1743972268235,3.0,1591.3,1590.4,6.28761]
[1743972268453,3.0,1591.3,1590.1,15.57756]
[1743972268652,3.0,1591.3,1590.3,6.28809]
[1743972268852,3.0,1591.3,1590.4,0.628809]
[1743972269063,0.55,1591.2,1590.0,6.28919]
[1743972269283,0.5,1591.2,1590.2,6.28823]
[1743972269485,0.5,1591.2,1590.2,9.28851]
[1743972269692,0.5,1591.2,1590.3,6.28792]
[1743972270179,0.5,1591.2,1590.4,6.2875]
[1743972270471,13.643,1592.0,1590.8,6.2858]
[1743972270875,14.10786355,1592.0,1590.8,3.0]
[1743972271180,13.643,1592.0,1591.4,6.28363]
[1743972271345,13.643,1592.0,1590.9,11.44078929]
[1743972271346,13.643,1592.0,1591.3,6.28401]
[1743972271673,13.619,1592.5,1591.6,6.28281]
[1743972271845,0.46665639,1592.3,1591.3,9.28397]
[1743972272044,13.619,1592.5,1591.4,0.06281891]
[1743972272245,3.0,1592.4,1591.5,6.28322]
[1743972272450,13.619,1592.5,1591.7,6.28234]
[1743972272646,13.619,1592.5,1591.6,3.0628189]
[1743972272647,13.619,1592.5,1591.8,0.628234]
[1743972272842,13.619,1592.5,1591.9,0.0628063]
[1743972273148,3.68821221,1592.6,1591.9,6.28163]
[1743972273343,3.68821221,1592.6,1591.9,12.62608246]
[1743972273551,37.744,1592.9,1591.9,6.28163]
[1743972273961,12.71317557,1592.8,1591.3,6.28377]
[1743972274161,3.0,1592.4,1591.4,6.911937]
[1743972274357,5.90398054,1591.6,1589.9,1.5091]
[1743972274571,13.56,1591.5,1590.5,6.28709]
[1743972274773,13.56,1591.5,1590.2,6.76179465]
[1743972274973,13.56,1591.5,1590.7,6.28627]
[1743972275178,13.56,1591.5,1590.5,6.28702]
[1743972275380,13.56,1591.5,1590.7,6.28625]
[1743972275573,13.56,1591.5,1590.8,0.628625]
[1743972275883,13.56,1591.5,1590.8,6.28591]
[1743972276083,13.56,1591.5,1590.8,6.28607]
[1743972276262,13.56,1591.5,1591.0,6.28516]
[1743972276463,13.56,1591.5,1590.8,6.28598]
[1743972276659,13.56,1591.5,1590.8,3.06283815]
[1743972276860,13.56,1591.5,1591.0,6.28513]
[1743972277091,37.737,1591.9,1591.2,6.28418]
[1743972277390,3.68821221,1592.4,1591.4,6.28366]
[1743972277590,3.68821221,1592.4,1591.6,6.28277]
[1743972277755,3.68821221,1592.4,1591.7,0.06281605]
[1743972277955,3.68821221,1592.4,1591.7,0.69737466]
[1743972278155,3.68821221,1592.4,1591.7,0.06281605]
[1743972278388,3.68821221,1592.4,1591.9,6.2814]
[1743972278686,3.68821221,1592.4,1592.0,0.06280581]
[1743972278891,3.68821221,1592.4,1591.7,12.56469]
[1743972279094,13.92187709,1592.8,1591.4,0.55]
[1743972279286,13.92187709,1592.8,1591.9,6.28164]
[1743972279595,13.92187709,1592.8,1591.6,9.28298]
[1743972279596,13.92187709,1592.8,1591.7,6.28237]
[1743972279793,13.92187709,1592.8,1591.8,6.3448278]
[1743972280288,0.55,1592.7,1591.6,9.28278]
[1743972280467,0.55,1592.7,1591.6,15.56553]
[1743972280790,3.0,1592.7,1591.7,7.839123]
[1743972280990,3.0,1592.7,1591.8,6.28201]
[1743972281192,3.0,1592.7,1591.5,3.0]
[1743972281193,3.0,1592.7,1591.6,6.28263]
[1743972281392,3.0,1592.7,1591.4,0.355]
[1743972281702,13.46,1592.8,1591.8,9.28203]
[1743972281994,3.55,1592.5,1591.4,0.355]
[1743972282199,3.0,1592.2,1591.3,6.28394]
[1743972282363,13.309,1592.1,1591.1,6.913413]
[1743972282558,3.0,1591.9,1591.1,0.628513]
[1743972282787,5.90398054,1592.0,1591.0,12.57036]
[1743972282994,5.90398054,1592.0,1590.9,6.28571]
[1743972283196,5.90398054,1592.0,1591.0,6.28523]
[1743972283502,0.55,1591.9,1590.9,6.28572]
[1743972283703,3.55,1591.9,1591.0,0.628572]
[1743972283866,7.82872619,1591.9,1590.6,6.28675]
[1743972284062,7.82872619,1591.9,1590.7,6.28635]
[1743972284263,7.82872619,1591.9,1590.2,51.52299054]
[1743972284264,3.55,1591.6,1590.5,6.28726]
[1743972284506,3.55,1591.6,1590.2,39.3307]
[1743972284507,3.55,1591.8,1590.6,6.28674]
[1743972284708,0.55,1591.6,1590.7,0.628674]
[1743972284997,3.55,1591.6,1590.2,6.28846]
[1743972285200,3.55,1591.3,1590.1,6.28883]
[1743972285402,0.55,1591.1,1590.0,6.28919]
[1743972285615,6.45398054,1591.1,1589.9,6.2897]
[1743972285761,6.45398054,1591.1,1589.8,7.88574]
[1743972285762,3.55,1591.1,1589.8,1.5957]
[1743972285957,3.55,1591.1,1590.0,6.28913]
[1743972286159,3.55,1591.1,1590.1,0.628913]
[1743972286497,3.0,1590.8,1589.7,6.29046]
[1743972286703,5.90398054,1590.6,1589.3,6.29207]
[1743972287002,5.90398054,1590.6,1589.4,0.629207]
[1743972287003,3.0,1590.4,1589.4,0.629207]
[1743972287411,3.0,1590.4,1589.4,6.98375773]
[1743972287570,3.0,1590.4,1589.4,0.69210773]
[1743972287901,6.45398054,1590.3,1588.7,6.29445]
[1743972288072,0.55,1590.3,1589.3,6.2918]
[1743972288268,7.27863186,1590.4,1589.4,6.2915]
[1743972288487,7.27863186,1590.4,1589.5,0.62915]
[1743972288685,4.27863186,1590.4,1589.5,0.69205068]
[1743972288880,4.27863186,1590.4,1589.5,12.58216]
[1743972288881,3.80919503,1590.4,1589.5,12.58216]
[1743972289104,5.90398054,1590.8,1589.8,6.28989]
[1743972289400,5.90398054,1590.8,1589.7,6.29028]
[1743972289401,22.62819275,1590.8,1589.7,6.29028]
[1743972289604,23.09531848,1590.8,1589.7,6.29024]
[1743972289767,23.09531848,1590.8,1589.8,0.629024]
[1743972290713,16.72421221,1590.8,1590.0,6.28915]
[1743972290908,16.72421221,1590.8,1589.8,6.919084]
[1743972291211,16.72421221,1590.8,1589.8,0.629024]
[1743972291390,0.55,1590.6,1589.4,6.29142]
[1743972291596,0.55,1590.6,1589.5,6.29107]
[1743972291765,5.90398054,1590.5,1589.3,6.29176]
[1743972291968,5.90398054,1590.5,1588.8,7.88959]
[1743972291969,3.55,1590.4,1588.8,7.88959]
[1743972292163,3.55,1590.4,1589.2,6.29244]
[1743972292408,3.0,1590.4,1588.9,7.082549]
[1743972292700,0.55,1590.3,1589.0,0.06290263]
[1743972293011,5.90398054,1590.2,1589.1,6.35563412]
[1743972293173,12.872,1590.1,1589.2,0.63556341]
[1743972293382,12.872,1590.1,1589.4,6.29144]
[1743972293583,12.872,1590.1,1589.2,3.0]
[1743972293763,12.872,1590.1,1589.1,6.29272]
[1743972293967,12.872,1590.1,1589.0,6.2932]
[1743972294298,3.0,1590.0,1588.9,12.5871]
[1743972294490,3.0,1590.0,1589.1,6.29281]
[1743972294805,3.0,1590.0,1589.0,6.29314]
[1743972295007,3.0,1590.0,1588.9,6.29343]
[1743972295163,13.422,1590.1,1588.9,6.29343]
[1743972295164,12.872,1590.1,1589.0,0.06292435]
[1743972295366,12.872,1590.1,1589.3,12.58385]
[1743972295579,12.872,1590.1,1589.2,6.29247]
[1743972295781,12.872,1590.1,1589.4,12.58321]
[1743972296003,12.872,1590.1,1589.6,6.29086]
[1743972296215,12.872,1590.1,1589.8,6.29008]
[1743972296400,3.68821221,1590.5,1589.6,6.2908]
[1743972296602,6.68821221,1590.5,1589.3,6.29184]
[1743972296914,9.59219275,1590.5,1589.5,6.29115]
[1743972297223,3.68821221,1590.5,1589.8,6.29009]
[1743972297385,3.68821221,1590.5,1589.9,0.629009]
[1743972297581,3.68821221,1590.5,1589.9,6.918669]
[1743972297905,3.68821221,1590.5,1589.9,0.629009]
[1743972298111,3.68821221,1590.7,1589.4,3.0]
[1743972298323,3.68821221,1590.7,1589.6,3.0]
[1743972298637,3.68821221,1590.7,1590.1,6.28866]
[1743972298927,3.68821221,1590.7,1590.2,6.28843]
[1743972299098,3.68821221,1590.7,1590.3,0.628843]
[1743972299329,3.68821221,1590.7,1590.3,6.916743]
[1743972299609,3.68821221,1590.7,1590.4,6.2875]
[1743972299805,3.68821221,1590.7,1590.3,0.628843]
[1743972300220,3.68821221,1590.7,1590.0,3.0]
[1743972300407,3.68821221,1590.7,1590.4,6.28759]
[1743972300611,3.68821221,1590.7,1590.5,6.28718]
[1743972300811,3.68821221,1590.7,1590.4,6.28752]
[1743972301012,3.68821221,1590.7,1590.1,6.28863]
[1743972301189,3.68821221,1590.7,1590.2,0.628863]
[1743972301384,0.46379192,1591.2,1589.8,5.90398054]
[1743972301385,4.15200413,1591.2,1590.1,6.28873]
[1743972301727,3.68821221,1591.2,1590.6,6.28677]
[1743972301909,3.68821221,1591.2,1591.1,6.28496]
[1743972302113,3.68821221,1591.2,1590.3,4.5815]
[1743972302320,3.68821221,1591.2,1590.5,6.2873]
[1743972302492,4.15242911,1591.2,1590.4,0.45815]
[1743972302815,4.15242911,1591.2,1590.5,6.28706]
[1743972302816,3.68821221,1591.2,1590.5,6.28706]
[1743972302991,3.68821221,1591.2,1590.4,6.28771]
[1743972302992,4.16277022,1591.2,1590.4,6.28771]
[1743972303197,4.16277022,1591.2,1590.3,12.57614]
[1743972303405,3.68821221,1591.2,1590.3,6.28798]
[1743972303615,3.55,1591.1,1589.9,6.28957]
[1743972303823,3.55,1591.1,1590.0,0.06288236]
[1743972304020,0.55,1590.7,1589.5,0.1277]
[1743972304186,0.55,1590.4,1589.5,0.1277]
[1743972304521,3.55,1590.2,1589.5,0.1277]
[1743972304724,2.83887245,1590.1,1589.2,6.29212]
[1743972305020,0.55,1590.1,1589.3,0.629212]
[1743972305213,3.0,1590.2,1588.8,6.294]
[1743972305520,41.56519503,1590.3,1589.0,3.0]
[1743972305695,41.56519503,1590.3,1589.3,6.29199]
[1743972305896,12.568,1590.4,1589.2,5.90398054]
[1743972306209,12.568,1590.4,1589.2,3.0]
[1743972306413,12.555,1590.9,1589.7,6.2903]
[1743972306618,12.555,1590.9,1589.8,0.62903]
[1743972306930,0.55,1590.8,1589.4,6.29151]
[1743972307089,0.46262158,1590.5,1589.5,0.06290191]
[1743972307596,0.55,1590.7,1589.3,6.29188]
[1743972307790,3.0,1590.6,1589.4,0.629188]
[1743972308137,0.55,1590.0,1588.6,6.29482]
[1743972308424,3.55,1589.8,1588.2,7.88032]
[1743972308588,5.90398054,1589.6,1588.2,12.5925]
[1743972308794,3.55,1589.5,1588.1,6.29679]
[1743972308997,3.55,1589.2,1587.5,1.5841]
[1743972309191,16.30119503,1589.1,1588.1,6.29654]
[1743972309393,16.30119503,1589.1,1587.9,6.29745]
[1743972309628,16.30119503,1589.1,1588.0,6.29721]
[1743972309827,0.55,1589.0,1587.9,6.29738]
[1743972309995,0.55,1589.0,1588.0,0.69270605]
[1743972310191,0.55,1589.0,1588.0,0.69269356]
[1743972310497,0.55,1589.0,1588.0,0.06295556]
[1743972310711,16.30119503,1589.1,1587.9,6.36053542]
[1743972310920,16.30119503,1589.1,1588.0,0.06296542]
[1743972311123,16.30119503,1589.1,1588.3,6.29587]
[1743972311335,12.492,1589.1,1588.5,6.29488]
[1743972311526,12.492,1589.1,1588.6,0.629488]
[1743972311904,12.492,1589.1,1588.7,0.06292998]
[1743972312113,12.492,1589.1,1588.6,0.629488]
[1743972312312,12.492,1589.1,1588.6,6.924038]
[1743972312632,12.492,1589.1,1588.7,0.6924038]
[1743972312835,12.492,1589.1,1588.4,6.29561]
[1743972313036,12.492,1589.1,1588.0,3.55]
[1743972313037,12.492,1589.1,1588.0,6.29693]
[1743972313241,0.55,1589.0,1587.7,6.29826]
[1743972313405,3.0,1588.6,1587.2,6.30018]
[1743972313734,3.0,1588.6,1587.4,6.29927]
[1743972313939,3.0,1588.6,1587.2,6.3004]
[1743972313940,0.55,1588.5,1587.5,0.629927]
[1743972314124,12.376,1588.4,1587.3,6.29976]
[1743972314301,12.376,1588.4,1587.1,1.5841]
[1743972314849,12.376,1588.4,1587.0,0.48432832]
[1743972314850,3.55,1588.3,1587.0,6.3008]
[1743972316707,0.3809195,1588.7,1587.3,8.90398054]
[1743972316948,3.80919503,1588.8,1587.9,6.29724]
[1743972317132,12.329,1589.0,1588.0,6.29717]
[1743972317340,12.329,1589.0,1587.9,5.90398054]
[1743972317341,12.329,1589.0,1588.1,6.29659]
[1743972317649,12.329,1589.0,1587.9,5.90398054]
[1743972317806,12.329,1589.0,1588.1,6.29676]
[1743972318222,12.329,1589.0,1588.2,6.35901309]
[1743972318421,12.329,1589.0,1588.0,3.59039805]
[1743972318623,12.329,1589.0,1588.2,6.29625]
[1743972318822,3.80919503,1589.4,1588.5,6.29496]
[1743972319027,3.80919503,1589.4,1588.6,0.629496]
[1743972319434,3.80919503,1589.4,1588.3,6.29574]
[1743972319747,3.80919503,1589.4,1588.2,3.0]
[1743972319922,3.80919503,1589.4,1588.4,6.29548]
[1743972320120,3.80919503,1589.4,1588.2,3.0]
[1743972320121,3.80919503,1589.4,1588.5,6.29522]
[1743972320309,3.80919503,1589.4,1588.6,0.629522]
[1743972320513,3.80919503,1589.4,1588.1,6.29644]
[1743972320514,0.55,1589.3,1588.0,0.59039805]
[1743972320749,0.55,1588.8,1587.3,6.29965]
[1743972320951,0.55,1588.8,1586.8,6.30195]
[1743972320952,0.55,1588.5,1586.8,6.30195]
[1743972321150,0.55,1588.5,1586.5,6.30314]
[1743972321151,8.43014486,1588.2,1586.5,6.30314]
[1743972321448,8.43014486,1588.2,1586.4,1.5656]
[1743972321449,7.35919503,1588.1,1586.4,1.5656]
[1743972321645,12.301,1588.0,1586.5,6.36618289]
[1743972321871,3.55,1587.9,1586.5,6.30294]
[1743972322060,3.55,1587.9,1585.9,6.83435606]
[1743972322061,0.55,1587.6,1585.9,6.30525]
[1743972322256,3.0,1587.7,1586.0,0.630525]
[1743972322257,0.55,1587.3,1586.0,0.630525]
[1743972322550,0.55,1586.7,1585.1,6.30875]
[1743972322712,3.0,1586.9,1585.0,6.37835649]
[1743972322713,3.80919503,1586.6,1585.8,6.30576]
[1743972322918,12.337,1586.7,1585.9,0.06305772]
[1743972323222,16.14619503,1586.7,1585.3,6.30795]
[1743972323414,3.0,1586.6,1585.3,6.30795]
[1743972323608,3.0,1586.6,1585.2,0.630875]
[1743972323609,37.806,1586.5,1585.4,0.630795]
[1743972323855,0.55,1586.4,1585.0,12.68743649]
[1743972324051,37.806,1586.5,1585.1,6.30875]
[1743972324346,12.393,1586.6,1585.2,6.30835]
[1743972324535,12.393,1586.6,1585.9,6.30529]
[1743972324736,12.393,1586.6,1585.5,9.30711]
[1743972324737,12.393,1586.6,1585.7,6.30616]
[1743972324944,12.393,1586.6,1585.8,0.06304924]
[1743972325129,12.393,1586.6,1585.6,6.30652]
[1743972325459,12.393,1586.6,1585.3,6.30792]
[1743972325685,0.55,1586.4,1585.2,6.30796]
[1743972325971,12.72074821,1586.6,1585.2,6.30796]
[1743972325972,0.32774821,1586.6,1585.2,6.30835]
[1743972326176,12.374,1586.8,1585.8,6.30578]
[1743972326341,12.374,1586.8,1585.8,6.30573]
[1743972326548,12.374,1586.8,1585.6,3.0]
[1743972326549,3.55,1586.7,1585.6,6.30666]
[1743972326733,3.55,1586.7,1585.7,6.30617]
[1743972326928,12.374,1586.8,1585.3,6.938505]
[1743972326929,12.374,1586.8,1586.0,6.30492]
[1743972327248,12.374,1586.8,1585.9,6.30544]
[1743972327444,7.68691449,1586.7,1585.3,0.630835]
[1743972327643,7.68691449,1586.7,1585.4,6.30736]
[1743972327854,12.374,1586.8,1585.4,6.30755]
[1743972327855,12.418,1586.8,1585.4,6.30755]
[1743972328056,0.55,1586.7,1585.7,6.30614]
[1743972328260,6.80919503,1586.7,1585.2,7.87128]
[1743972328432,6.80919503,1586.7,1585.9,6.30553]
[1743972328633,3.80919503,1586.7,1586.0,6.30499]
[1743972328834,12.418,1586.8,1585.5,3.55]
[1743972329138,12.418,1586.8,1586.1,6.30476]
[1743972329347,12.418,1586.8,1586.3,6.30371]
[1743972329576,12.418,1586.8,1586.1,0.630476]
[1743972329771,12.418,1586.8,1585.9,6.30529]
[1743972330365,12.7457135,1586.8,1585.4,6.30755]
[1743972330569,12.7457135,1586.8,1586.1,6.30443]
[1743972330739,12.418,1586.8,1586.1,6.934873]
[1743972330929,2.68070384,1587.1,1586.6,6.30262]
[1743972331131,2.68070384,1587.1,1586.6,6.30278]
[1743972331428,12.44,1587.9,1586.9,6.30143]
[1743972331731,0.2715598,1587.8,1587.5,6.29917]
[1743972331934,3.80919503,1588.4,1587.6,6.3615448]
[1743972332172,0.2715598,1587.7,1587.6,0.0629848]
[1743972332471,16.111655,1588.5,1587.7,6.29841]
[1743972332635,16.111655,1588.5,1587.5,12.5979]
[1743972332827,0.24892982,1588.4,1587.6,6.29868]
[1743972333026,0.24892982,1588.4,1587.7,0.629868]
[1743972333269,0.24892982,1588.4,1587.4,6.29933]
[1743972333461,0.24892982,1588.4,1587.2,6.3]
[1743972333668,0.24892982,1588.4,1587.2,3.0]
[1743972333854,0.24892982,1588.4,1587.6,6.29866]
[1743972334176,2.79506095,1587.3,1586.0,6.30506]
[1743972334468,37.832,1587.6,1586.1,7.99623297]
[1743972334680,3.0,1587.5,1585.7,1.5903]
[1743972334845,3.0,1587.5,1585.3,53.35706286]
[1743972334846,0.94014055,1587.4,1585.4,6.30755]
[1743972335035,18.35842114,1587.5,1585.4,5.33570629]
[1743972335237,18.03023547,1587.5,1585.4,11.64322629]
[1743972335436,3.0,1587.0,1585.5,1.16432263]